[Event "Titled Tuesday Blitz February 07 Late 2023"]
[White "Marin Ramirez, Gerardo"]
[Black "Matko, Ognjen"]
[WhiteFideId "3901068"]
[BlackFideId "14509717"]
[WhiteElo "2127"]
[BlackElo "2295"]
[Result "0-1"]
[Round "02"]
[TimeControl "180+2"]
[Date "2023.02.07"]
[WhiteClock "0:00:02"]
[BlackClock "0:00:12"]

1. d4 {[%clk 0:03:00]}  d5 {[%clk 0:02:58]} 2. Nf3 {[%clk 0:03:01]}  Nf6 {[%clk 0:02:57]} 3. c4 {[%clk 0:03:02]}  c6 {[%clk 0:02:57]} 4. Nc3 {[%clk 0:03:03]}  a6 {[%clk 0:02:57]} 5. cxd5 {[%clk 0:02:59]}  cxd5 {[%clk 0:02:58]} 6. Bg5 {[%clk 0:02:58]}  Nc6 {[%clk 0:02:59]} 7. e3 {[%clk 0:02:58]}  Bf5 {[%clk 0:02:57]} 8. Bxf6 {[%clk 0:02:47]}  gxf6 {[%clk 0:02:48]} 9. Qb3 {[%clk 0:02:43]}  e6 {[%clk 0:02:46]} 10. Be2 {[%clk 0:02:36]}  Bd6 {[%clk 0:02:26]} 11. Rc1 {[%clk 0:02:30]}  Na5 {[%clk 0:02:24]} 12. Qd1 {[%clk 0:02:24]}  b5 {[%clk 0:02:20]} 13. O-O {[%clk 0:02:16]}  Nc4 {[%clk 0:01:53]} 14. b3 {[%clk 0:02:13]}  Nb6 {[%clk 0:01:46]} 15. Bd3 {[%clk 0:02:12]}  Bg6 {[%clk 0:01:45]} 16. a4 {[%clk 0:01:55]}  b4 {[%clk 0:01:39]} 17. Ne2 {[%clk 0:01:54]}  Bxd3 {[%clk 0:01:30]} 18. Qxd3 {[%clk 0:01:52]}  f5 {[%clk 0:01:30]} 19. Rc6 {[%clk 0:01:49]}  O-O {[%clk 0:01:26]} 20. Rfc1 {[%clk 0:01:37]}  Bb8 {[%clk 0:01:18]} 21. a5 {[%clk 0:01:28]}  Nd7 {[%clk 0:01:16]} 22. Rxa6 {[%clk 0:01:26]}  Rxa6 {[%clk 0:01:07]} 23. Qxa6 {[%clk 0:01:27]}  Nf6 {[%clk 0:01:07]} 24. Qb5 {[%clk 0:00:58]}  Ne4 {[%clk 0:00:59]} 25. Qxb4 {[%clk 0:00:53]}  Bd6 {[%clk 0:00:50]} 26. Qb5 {[%clk 0:00:50]}  Qa8 {[%clk 0:00:46]} 27. a6 {[%clk 0:00:37]}  Rb8 {[%clk 0:00:44]} 28. Qa4 {[%clk 0:00:37]}  Rb4 {[%clk 0:00:39]} 29. Qa2 {[%clk 0:00:30]}  Rb8 {[%clk 0:00:30]} 30. g3 {[%clk 0:00:25]}  h5 {[%clk 0:00:29]} 31. Qa4 {[%clk 0:00:18]}  Kg7 {[%clk 0:00:26]} 32. Nc3 {[%clk 0:00:15]}  Rc8 {[%clk 0:00:22]} 33. Ne2 {[%clk 0:00:14]}  Rb8 {[%clk 0:00:21]} 34. Qc6 {[%clk 0:00:11]}  Qa7 {[%clk 0:00:20]} 35. Nc3 {[%clk 0:00:08]}  Rb6 {[%clk 0:00:19]} 36. Qc8 {[%clk 0:00:07]}  Qxa6 {[%clk 0:00:16]} 37. Nxe4 {[%clk 0:00:02]}  fxe4 {[%clk 0:00:14]} 38. Ne5 {[%clk 0:00:02]}  Qxc8 {[%clk 0:00:12]} 0-1


[Site "https://www.chess.com"]

[Event "Titled Tuesday Blitz February 07 Late 2023"]
[White "Mareco, Sandro"]
[Black "Tarnowska, Aleksandra"]
[WhiteFideId "112275"]
[BlackFideId "1180967"]
[WhiteElo "2633"]
[BlackElo "1835"]
[Result "1-0"]
[Round "02"]
[TimeControl "180+2"]
[Date "2023.02.07"]
[WhiteClock "0:00:05"]
[BlackClock "0:00:02"]

1. d4 {[%clk 0:03:00]}  d5 {[%clk 0:02:59]} 2. Nc3 {[%clk 0:03:01]}  Nf6 {[%clk 0:02:58]} 3. Bf4 {[%clk 0:03:01]}  e6 {[%clk 0:02:58]} 4. Nb5 {[%clk 0:03:00]}  Bd6 {[%clk 0:02:54]} 5. Nxd6+ {[%clk 0:02:59]}  cxd6 {[%clk 0:02:55]} 6. e3 {[%clk 0:02:59]}  O-O {[%clk 0:02:54]} 7. c3 {[%clk 0:02:58]}  Nc6 {[%clk 0:02:48]} 8. Nf3 {[%clk 0:02:56]}  Re8 {[%clk 0:02:47]} 9. h3 {[%clk 0:02:56]}  e5 {[%clk 0:02:43]} 10. Bh2 {[%clk 0:02:56]}  Bf5 {[%clk 0:02:34]} 11. Be2 {[%clk 0:02:52]}  Qb6 {[%clk 0:02:30]} 12. Qb3 {[%clk 0:02:51]}  Qxb3 {[%clk 0:02:23]} 13. axb3 {[%clk 0:02:52]}  Bc2 {[%clk 0:02:23]} 14. b4 {[%clk 0:02:16]}  a6 {[%clk 0:02:08]} 15. O-O {[%clk 0:01:56]}  h6 {[%clk 0:01:40]} 16. Rfc1 {[%clk 0:01:33]}  Bh7 {[%clk 0:01:29]} 17. Kf1 {[%clk 0:01:22]}  g5 {[%clk 0:01:15]} 18. b5 {[%clk 0:01:06]}  axb5 {[%clk 0:01:13]} 19. Bxb5 {[%clk 0:01:07]}  Nd7 {[%clk 0:01:06]} 20. Rd1 {[%clk 0:00:56]}  Be4 {[%clk 0:00:39]} 21. Nd2 {[%clk 0:00:47]}  Bc2 {[%clk 0:00:38]} 22. Rdc1 {[%clk 0:00:42]}  Bg6 {[%clk 0:00:38]} 23. Nf3 {[%clk 0:00:42]}  f6 {[%clk 0:00:28]} 24. g4 {[%clk 0:00:39]}  Nb6 {[%clk 0:00:28]} 25. b3 {[%clk 0:00:36]}  Rxa1 {[%clk 0:00:24]} 26. Rxa1 {[%clk 0:00:36]}  Ra8 {[%clk 0:00:25]} 27. Rxa8+ {[%clk 0:00:36]}  Nxa8 {[%clk 0:00:25]} 28. c4 {[%clk 0:00:32]}  dxc4 {[%clk 0:00:25]} 29. bxc4 {[%clk 0:00:27]}  Bd3+ {[%clk 0:00:24]} 30. Ke1 {[%clk 0:00:25]}  Nb4 {[%clk 0:00:25]} 31. Kd2 {[%clk 0:00:20]}  Be4 {[%clk 0:00:23]} 32. Ne1 {[%clk 0:00:20]}  Nb6 {[%clk 0:00:22]} 33. f3 {[%clk 0:00:19]}  Bg6 {[%clk 0:00:22]} 34. dxe5 {[%clk 0:00:19]}  fxe5 {[%clk 0:00:21]} 35. f4 {[%clk 0:00:19]}  gxf4 {[%clk 0:00:21]} 36. exf4 {[%clk 0:00:20]}  e4 {[%clk 0:00:21]} 37. f5 {[%clk 0:00:21]}  Bf7 {[%clk 0:00:21]} 38. Bxd6 {[%clk 0:00:21]}  Bxc4 {[%clk 0:00:17]} 39. Bxb4 {[%clk 0:00:12]}  Bxb5 {[%clk 0:00:17]} 40. Nc2 {[%clk 0:00:10]}  Nc4+ {[%clk 0:00:13]} 41. Kc3 {[%clk 0:00:09]}  Ba6 {[%clk 0:00:11]} 42. Be7 {[%clk 0:00:09]}  Kf7 {[%clk 0:00:10]} 43. Bh4 {[%clk 0:00:08]}  Nd6 {[%clk 0:00:08]} 44. Kd4 {[%clk 0:00:09]}  Bd3 {[%clk 0:00:06]} 45. Ne3 {[%clk 0:00:09]}  b5 {[%clk 0:00:06]} 46. Bg3 {[%clk 0:00:08]}  Nc4 {[%clk 0:00:04]} 47. Nd5 {[%clk 0:00:08]}  Nb2 {[%clk 0:00:03]} 48. h4 {[%clk 0:00:08]}  Nd1 {[%clk 0:00:04]} 49. Bf4 {[%clk 0:00:08]}  Nf2 {[%clk 0:00:03]} 50. g5 {[%clk 0:00:08]}  hxg5 {[%clk 0:00:03]} 51. hxg5 {[%clk 0:00:09]}  Ng4 {[%clk 0:00:03]} 52. g6+ {[%clk 0:00:09]}  Kg7 {[%clk 0:00:04]} 53. Be5+ {[%clk 0:00:09]}  Nxe5 {[%clk 0:00:04]} 54. Kxe5 {[%clk 0:00:10]}  Bc4 {[%clk 0:00:03]} 55. Kxe4 {[%clk 0:00:09]}  Bb3 {[%clk 0:00:03]} 56. Kd4 {[%clk 0:00:09]}  Bc2 {[%clk 0:00:03]} 57. Ke5 {[%clk 0:00:08]}  Bd3 {[%clk 0:00:03]} 58. Nb4 {[%clk 0:00:08]}  Bc4 {[%clk 0:00:03]} 59. Nc6 {[%clk 0:00:06]}  Bd3 {[%clk 0:00:01]} 60. Ne7 {[%clk 0:00:06]}  b4 {[%clk 0:00:02]} 61. f6+ {[%clk 0:00:06]}  Kf8 {[%clk 0:00:01]} 62. g7+ {[%clk 0:00:05]}  Ke8 {[%clk 0:00:01]} 63. g8=Q+ {[%clk 0:00:05]}  Kd7 {[%clk 0:00:02]} 64. Qc8# {[%clk 0:00:05]} 1-0


[Site "https://www.chess.com"]

[Event "Titled Tuesday Blitz February 07 Late 2023"]
[White "Flynn, Jacob"]
[Black "Michalski, Olaf"]
[WhiteFideId "2509393"]
[BlackFideId "1106740"]
[WhiteElo "2102"]
[BlackElo "2273"]
[Result "1-0"]
[Round "02"]
[TimeControl "180+2"]
[Date "2023.02.07"]
[WhiteClock "0:02:25"]
[BlackClock "0:01:08"]

1. Nf3 {[%clk 0:03:00]}  d6 {[%clk 0:02:59]} 2. e4 {[%clk 0:02:59]}  Nf6 {[%clk 0:02:53]} 3. Nc3 {[%clk 0:02:59]}  Bg4 {[%clk 0:02:50]} 4. d4 {[%clk 0:02:57]}  e6 {[%clk 0:02:48]} 5. Be3 {[%clk 0:02:57]}  c6 {[%clk 0:02:47]} 6. h3 {[%clk 0:02:50]}  Bh5 {[%clk 0:02:47]} 7. g4 {[%clk 0:02:50]}  Bg6 {[%clk 0:02:46]} 8. Bd3 {[%clk 0:02:47]}  d5 {[%clk 0:02:40]} 9. exd5 {[%clk 0:02:46]}  exd5 {[%clk 0:02:21]} 10. Ne5 {[%clk 0:02:43]}  Bd6 {[%clk 0:02:07]} 11. f4 {[%clk 0:02:43]}  Be4 {[%clk 0:01:55]} 12. Bxe4 {[%clk 0:02:42]}  Nxe4 {[%clk 0:01:52]} 13. Nxe4 {[%clk 0:02:41]}  dxe4 {[%clk 0:01:52]} 14. Qe2 {[%clk 0:02:36]}  Qa5+ {[%clk 0:01:29]} 15. Bd2 {[%clk 0:02:32]}  Qb6 {[%clk 0:01:25]} 16. Nc4 {[%clk 0:02:29]}  Qxd4 {[%clk 0:01:08]} 17. Bc3 {[%clk 0:02:25]} 1-0


[Site "https://www.chess.com"]

[Event "Titled Tuesday Blitz February 07 Late 2023"]
[White "Dudzinski, Pawel"]
[Black "Harish, Neeraj"]
[WhiteFideId "1117890"]
[BlackFideId "30958130"]
[WhiteElo "2186"]
[BlackElo "2232"]
[Result "1/2-1/2"]
[Round "02"]
[TimeControl "180+2"]
[Date "2023.02.07"]
[WhiteClock "0:01:05"]
[BlackClock "0:00:22"]

1. e4 {[%clk 0:02:59]}  c5 {[%clk 0:02:58]} 2. Nc3 {[%clk 0:02:54]}  Nc6 {[%clk 0:02:55]} 3. g3 {[%clk 0:02:54]}  g6 {[%clk 0:02:54]} 4. Bg2 {[%clk 0:02:50]}  Bg7 {[%clk 0:02:53]} 5. d3 {[%clk 0:02:50]}  d6 {[%clk 0:02:52]} 6. Be3 {[%clk 0:02:47]}  Nf6 {[%clk 0:02:52]} 7. h3 {[%clk 0:02:44]}  O-O {[%clk 0:02:51]} 8. Nge2 {[%clk 0:02:42]}  Rb8 {[%clk 0:02:48]} 9. d4 {[%clk 0:02:37]}  cxd4 {[%clk 0:02:41]} 10. Nxd4 {[%clk 0:02:38]}  Bd7 {[%clk 0:02:33]} 11. Nxc6 {[%clk 0:02:35]}  Bxc6 {[%clk 0:02:33]} 12. Bxa7 {[%clk 0:02:36]}  Ra8 {[%clk 0:02:27]} 13. Bd4 {[%clk 0:02:36]}  Qc7 {[%clk 0:02:07]} 14. O-O {[%clk 0:02:31]}  b5 {[%clk 0:01:56]} 15. Nd5 {[%clk 0:02:19]}  Nxd5 {[%clk 0:01:44]} 16. exd5 {[%clk 0:02:18]}  Bxd4 {[%clk 0:01:40]} 17. Qxd4 {[%clk 0:02:19]}  Bd7 {[%clk 0:01:40]} 18. c3 {[%clk 0:02:16]}  Qc4 {[%clk 0:01:33]} 19. Qxc4 {[%clk 0:02:01]}  bxc4 {[%clk 0:01:34]} 20. Rfe1 {[%clk 0:02:01]}  Rfe8 {[%clk 0:01:18]} 21. Bf1 {[%clk 0:02:01]}  Rab8 {[%clk 0:01:14]} 22. Re2 {[%clk 0:01:59]}  e6 {[%clk 0:01:08]} 23. dxe6 {[%clk 0:01:48]}  fxe6 {[%clk 0:01:04]} 24. Rd2 {[%clk 0:01:47]}  d5 {[%clk 0:01:04]} 25. Bxc4 {[%clk 0:01:45]}  dxc4 {[%clk 0:01:04]} 26. Rxd7 {[%clk 0:01:45]}  Rxb2 {[%clk 0:01:04]} 27. Rc7 {[%clk 0:01:33]}  Rf8 {[%clk 0:00:57]} 28. f4 {[%clk 0:01:31]}  Rd8 {[%clk 0:00:41]} 29. Rxc4 {[%clk 0:01:04]}  Rdd2 {[%clk 0:00:39]} 30. Re1 {[%clk 0:01:04]}  Rg2+ {[%clk 0:00:38]} 31. Kh1 {[%clk 0:01:05]}  Rh2+ {[%clk 0:00:38]} 32. Kg1 {[%clk 0:01:05]}  Rhg2+ {[%clk 0:00:29]} 33. Kh1 {[%clk 0:01:04]}  Rh2+ {[%clk 0:00:22]} 34. Kg1 {[%clk 0:01:05]}  Rhg2+ {[%clk 0:00:22]} 1/2-1/2


[Site "https://www.chess.com"]

[Event "Titled Tuesday Blitz February 07 Late 2023"]
[White "Huber, Benedikt"]
[Black "Winkels, Marcel"]
[WhiteFideId "12923583"]
[BlackFideId "1003887"]
[WhiteElo "2272"]
[BlackElo "1960"]
[Result "1-0"]
[Round "02"]
[TimeControl "180+2"]
[Date "2023.02.07"]
[WhiteClock "0:00:14"]
[BlackClock "0:00:01"]

1. d4 {[%clk 0:02:36]}  Nf6 {[%clk 0:02:57]} 2. Nc3 {[%clk 0:02:35]}  d5 {[%clk 0:02:55]} 3. Bf4 {[%clk 0:02:36]}  a6 {[%clk 0:02:54]} 4. e3 {[%clk 0:02:36]}  g6 {[%clk 0:02:54]} 5. Nf3 {[%clk 0:02:33]}  Bg7 {[%clk 0:02:53]} 6. Ne5 {[%clk 0:02:32]}  O-O {[%clk 0:02:52]} 7. h4 {[%clk 0:02:33]}  h5 {[%clk 0:02:50]} 8. Be2 {[%clk 0:02:33]}  Nbd7 {[%clk 0:02:47]} 9. g4 {[%clk 0:02:27]}  Nxe5 {[%clk 0:02:41]} 10. dxe5 {[%clk 0:02:24]}  Nxg4 {[%clk 0:02:40]} 11. Qxd5 {[%clk 0:02:17]}  e6 {[%clk 0:02:18]} 12. Qe4 {[%clk 0:02:09]}  Bd7 {[%clk 0:02:16]} 13. Rg1 {[%clk 0:01:59]}  Bc6 {[%clk 0:02:14]} 14. Qc4 {[%clk 0:01:52]}  Nxe5 {[%clk 0:02:06]} 15. Bxe5 {[%clk 0:01:51]}  Bxe5 {[%clk 0:02:05]} 16. Bxh5 {[%clk 0:01:50]}  Bg7 {[%clk 0:01:45]} 17. Be2 {[%clk 0:01:42]}  Qd7 {[%clk 0:01:29]} 18. h5 {[%clk 0:01:38]}  Bb5 {[%clk 0:01:09]} 19. Nxb5 {[%clk 0:01:31]}  Qxb5 {[%clk 0:01:08]} 20. Qxb5 {[%clk 0:01:24]}  axb5 {[%clk 0:01:07]} 21. hxg6 {[%clk 0:01:17]}  c6 {[%clk 0:00:59]} 22. c3 {[%clk 0:01:04]}  Rad8 {[%clk 0:00:57]} 23. Rd1 {[%clk 0:00:58]}  Rd5 {[%clk 0:00:49]} 24. Bf3 {[%clk 0:00:52]}  Rxd1+ {[%clk 0:00:48]} 25. Kxd1 {[%clk 0:00:53]}  Rd8+ {[%clk 0:00:47]} 26. Kc2 {[%clk 0:00:53]}  fxg6 {[%clk 0:00:43]} 27. Rxg6 {[%clk 0:00:52]}  Kf7 {[%clk 0:00:43]} 28. Bh5 {[%clk 0:00:52]}  Rd5 {[%clk 0:00:37]} 29. Rg5+ {[%clk 0:00:51]}  Kf8 {[%clk 0:00:28]} 30. Rxd5 {[%clk 0:00:49]}  exd5 {[%clk 0:00:25]} 31. Bg4 {[%clk 0:00:47]}  Ke7 {[%clk 0:00:23]} 32. Bc8 {[%clk 0:00:46]}  b6 {[%clk 0:00:22]} 33. Kd3 {[%clk 0:00:44]}  Kd6 {[%clk 0:00:22]} 34. Bg4 {[%clk 0:00:36]}  b4 {[%clk 0:00:21]} 35. cxb4 {[%clk 0:00:35]}  Bxb2 {[%clk 0:00:19]} 36. Kc2 {[%clk 0:00:34]}  Bf6 {[%clk 0:00:18]} 37. a4 {[%clk 0:00:34]}  Bd8 {[%clk 0:00:16]} 38. Kb3 {[%clk 0:00:31]}  c5 {[%clk 0:00:15]} 39. Be2 {[%clk 0:00:26]}  c4+ {[%clk 0:00:15]} 40. Kc3 {[%clk 0:00:27]}  Ke5 {[%clk 0:00:14]} 41. Bf3 {[%clk 0:00:20]}  Bf6 {[%clk 0:00:13]} 42. Bg2 {[%clk 0:00:19]}  Kd6+ {[%clk 0:00:12]} 43. Kc2 {[%clk 0:00:19]}  Kc6 {[%clk 0:00:11]} 44. f4 {[%clk 0:00:17]}  Kd6 {[%clk 0:00:10]} 45. a5 {[%clk 0:00:17]}  bxa5 {[%clk 0:00:09]} 46. bxa5 {[%clk 0:00:18]}  Bd8 {[%clk 0:00:09]} 47. a6 {[%clk 0:00:17]}  Bb6 {[%clk 0:00:09]} 48. Kd2 {[%clk 0:00:14]}  Ba7 {[%clk 0:00:08]} 49. Bf3 {[%clk 0:00:13]}  Ke6 {[%clk 0:00:08]} 50. Bg4+ {[%clk 0:00:13]}  Kd6 {[%clk 0:00:08]} 51. Bf5 {[%clk 0:00:13]}  d4 {[%clk 0:00:07]} 52. e4 {[%clk 0:00:12]}  d3 {[%clk 0:00:07]} 53. Bh7 {[%clk 0:00:11]}  Bc5 {[%clk 0:00:06]} 54. e5+ {[%clk 0:00:11]}  Kc6 {[%clk 0:00:05]} 55. f5 {[%clk 0:00:11]}  Bb4+ {[%clk 0:00:05]} 56. Kd1 {[%clk 0:00:11]}  c3 {[%clk 0:00:05]} 57. f6 {[%clk 0:00:11]}  c2+ {[%clk 0:00:05]} 58. Kc1 {[%clk 0:00:12]}  Ba3+ {[%clk 0:00:05]} 59. Kd2 {[%clk 0:00:12]}  c1=Q+ {[%clk 0:00:05]} 60. Kxd3 {[%clk 0:00:12]}  Qd1+ {[%clk 0:00:05]} 61. Ke3 {[%clk 0:00:13]}  Qe1+ {[%clk 0:00:05]} 62. Kf4 {[%clk 0:00:13]}  Qf2+ {[%clk 0:00:05]} 63. Kg5 {[%clk 0:00:13]}  Qg3+ {[%clk 0:00:04]} 64. Kh6 {[%clk 0:00:12]}  Qxe5 {[%clk 0:00:03]} 65. f7 {[%clk 0:00:13]}  Qf6+ {[%clk 0:00:01]} 66. Bg6 {[%clk 0:00:14]} 1-0


[Site "https://www.chess.com"]

[Event "Titled Tuesday Blitz February 07 Late 2023"]
[White "Haszon, David"]
[Black "Necula, Iulian"]
[WhiteFideId "733610"]
[BlackFideId "1232380"]
[WhiteElo "2264"]
[BlackElo "1851"]
[Result "0-1"]
[Round "02"]
[TimeControl "180+2"]
[Date "2023.02.07"]
[WhiteClock "0:01:29"]
[BlackClock "0:01:56"]

1. e4 {[%clk 0:03:00]}  c5 {[%clk 0:02:59]} 2. c3 {[%clk 0:03:00]}  d5 {[%clk 0:02:54]} 3. exd5 {[%clk 0:02:59]}  Qxd5 {[%clk 0:02:54]} 4. d4 {[%clk 0:02:57]}  cxd4 {[%clk 0:02:50]} 5. Nf3 {[%clk 0:02:54]}  g6 {[%clk 0:02:48]} 6. cxd4 {[%clk 0:02:53]}  Bg7 {[%clk 0:02:47]} 7. Nc3 {[%clk 0:02:52]}  Qd8 {[%clk 0:02:41]} 8. Bc4 {[%clk 0:02:45]}  Nf6 {[%clk 0:02:39]} 9. O-O {[%clk 0:02:44]}  O-O {[%clk 0:02:38]} 10. Re1 {[%clk 0:02:44]}  Bg4 {[%clk 0:02:34]} 11. Be3 {[%clk 0:02:41]}  Nc6 {[%clk 0:02:33]} 12. Be2 {[%clk 0:02:22]}  Nd5 {[%clk 0:02:19]} 13. Nxd5 {[%clk 0:02:12]}  Qxd5 {[%clk 0:02:20]} 14. h3 {[%clk 0:02:12]}  Bf5 {[%clk 0:02:16]} 15. Qa4 {[%clk 0:02:05]}  a6 {[%clk 0:02:10]} 16. Red1 {[%clk 0:02:04]}  b5 {[%clk 0:02:08]} 17. Qa3 {[%clk 0:01:59]}  Bc2 {[%clk 0:01:59]} 18. Rdc1 {[%clk 0:01:50]}  b4 {[%clk 0:01:57]} 19. Bc4 {[%clk 0:01:31]}  Qxc4 {[%clk 0:01:57]} 20. Qb3 {[%clk 0:01:29]}  Bxb3 {[%clk 0:01:56]} 21. Rxc4 {[%clk 0:01:29]}  Bxc4 {[%clk 0:01:56]} 0-1


[Site "https://www.chess.com"]

[Event "Titled Tuesday Blitz February 07 Late 2023"]
[White "Saya, Ethan"]
[Black "Shapiro, Bryan"]
[WhiteFideId "26095181"]
[BlackFideId "2087740"]
[WhiteElo "2181"]
[BlackElo "1972"]
[Result "1-0"]
[Round "02"]
[TimeControl "180+2"]
[Date "2023.02.07"]
[WhiteClock "0:00:51"]
[BlackClock "0:00:10"]

1. e4 {[%clk 0:02:56]}  e5 {[%clk 0:02:58]} 2. Nf3 {[%clk 0:02:54]}  Nc6 {[%clk 0:02:59]} 3. Bc4 {[%clk 0:02:54]}  Bc5 {[%clk 0:02:59]} 4. c3 {[%clk 0:02:54]}  Nf6 {[%clk 0:02:59]} 5. d4 {[%clk 0:02:55]}  exd4 {[%clk 0:02:59]} 6. cxd4 {[%clk 0:02:56]}  Bb4+ {[%clk 0:02:59]} 7. Bd2 {[%clk 0:02:57]}  Bxd2+ {[%clk 0:02:58]} 8. Nbxd2 {[%clk 0:02:58]}  d5 {[%clk 0:02:58]} 9. exd5 {[%clk 0:02:59]}  Nxd5 {[%clk 0:02:59]} 10. Qb3 {[%clk 0:02:59]}  Be6 {[%clk 0:02:56]} 11. Qxb7 {[%clk 0:02:59]}  Ncb4 {[%clk 0:02:44]} 12. Bxd5 {[%clk 0:02:30]}  Rb8 {[%clk 0:01:56]} 13. Bc6+ {[%clk 0:02:07]}  Kf8 {[%clk 0:01:55]} 14. Qxa7 {[%clk 0:02:07]}  Nc2+ {[%clk 0:01:41]} 15. Ke2 {[%clk 0:02:01]}  Nxa1 {[%clk 0:01:42]} 16. Qc5+ {[%clk 0:01:56]}  Qe7 {[%clk 0:01:34]} 17. Qxe7+ {[%clk 0:01:49]}  Kxe7 {[%clk 0:01:34]} 18. Rxa1 {[%clk 0:01:50]}  Rxb2 {[%clk 0:01:34]} 19. a4 {[%clk 0:01:49]}  Kd6 {[%clk 0:01:31]} 20. Bb5 {[%clk 0:01:42]}  c6 {[%clk 0:01:29]} 21. Bd3 {[%clk 0:01:41]}  Bd5 {[%clk 0:01:20]} 22. Kf1 {[%clk 0:01:40]}  Ra8 {[%clk 0:01:10]} 23. a5 {[%clk 0:01:36]}  Kc7 {[%clk 0:01:02]} 24. Bc4 {[%clk 0:01:29]}  f6 {[%clk 0:00:47]} 25. g3 {[%clk 0:01:18]}  g5 {[%clk 0:00:39]} 26. h3 {[%clk 0:01:12]}  h5 {[%clk 0:00:39]} 27. g4 {[%clk 0:01:12]}  hxg4 {[%clk 0:00:39]} 28. hxg4 {[%clk 0:01:13]}  Rh8 {[%clk 0:00:39]} 29. Kg2 {[%clk 0:01:07]}  Rxd2 {[%clk 0:00:38]} 30. Bxd5 {[%clk 0:01:07]}  Rb2 {[%clk 0:00:29]} 31. Be4 {[%clk 0:01:01]}  Re8 {[%clk 0:00:29]} 32. a6 {[%clk 0:00:59]}  Ra8 {[%clk 0:00:15]} 33. d5 {[%clk 0:00:53]}  cxd5 {[%clk 0:00:13]} 34. Bxd5 {[%clk 0:00:54]}  Ra7 {[%clk 0:00:14]} 35. Rc1+ {[%clk 0:00:50]}  Kb6 {[%clk 0:00:14]} 36. Bb7 {[%clk 0:00:50]}  Rb4 {[%clk 0:00:10]} 37. Rc6+ {[%clk 0:00:49]}  Kb5 {[%clk 0:00:11]} 38. Rxf6 {[%clk 0:00:50]}  Rxg4+ {[%clk 0:00:11]} 39. Kh3 {[%clk 0:00:50]}  Rf4 {[%clk 0:00:09]} 40. Rxf4 {[%clk 0:00:50]}  gxf4 {[%clk 0:00:09]} 41. Kg4 {[%clk 0:00:50]}  Kc5 {[%clk 0:00:08]} 42. Kxf4 {[%clk 0:00:50]}  Kd6 {[%clk 0:00:09]} 43. Nd4 {[%clk 0:00:50]}  Ke7 {[%clk 0:00:10]} 44. Nc6+ {[%clk 0:00:51]} 1-0


[Site "https://www.chess.com"]

[Event "Titled Tuesday Blitz February 07 Late 2023"]
[White "Desideri, Ricardo Maruchi"]
[Black "Becerra, Juan David"]
[WhiteFideId "2110440"]
[BlackFideId "4404998"]
[WhiteElo "1959"]
[BlackElo "2382"]
[Result "0-1"]
[Round "02"]
[TimeControl "180+2"]
[Date "2023.02.07"]
[WhiteClock "0:00:01"]
[BlackClock "0:01:21"]

1. e4 {[%clk 0:03:00]}  c5 {[%clk 0:02:57]} 2. Nf3 {[%clk 0:03:00]}  d6 {[%clk 0:02:57]} 3. d4 {[%clk 0:03:00]}  cxd4 {[%clk 0:02:58]} 4. Nxd4 {[%clk 0:03:00]}  Nf6 {[%clk 0:02:58]} 5. Nc3 {[%clk 0:02:59]}  a6 {[%clk 0:02:58]} 6. Rg1 {[%clk 0:02:56]}  e5 {[%clk 0:02:54]} 7. Nb3 {[%clk 0:02:55]}  Be6 {[%clk 0:02:54]} 8. g4 {[%clk 0:02:54]}  d5 {[%clk 0:02:53]} 9. exd5 {[%clk 0:02:39]}  Nxd5 {[%clk 0:02:52]} 10. Ne4 {[%clk 0:02:27]}  f6 {[%clk 0:02:47]} 11. c4 {[%clk 0:02:11]}  Nc7 {[%clk 0:02:43]} 12. Qxd8+ {[%clk 0:02:08]}  Kxd8 {[%clk 0:02:44]} 13. Be3 {[%clk 0:02:07]}  Bb4+ {[%clk 0:02:37]} 14. Nbd2 {[%clk 0:02:04]}  Nd7 {[%clk 0:02:33]} 15. O-O-O {[%clk 0:02:02]}  Ke8 {[%clk 0:02:30]} 16. a3 {[%clk 0:01:58]}  Be7 {[%clk 0:02:30]} 17. Nb3 {[%clk 0:01:42]}  Kf7 {[%clk 0:02:29]} 18. Nbc5 {[%clk 0:01:40]}  Nxc5 {[%clk 0:02:27]} 19. Nxc5 {[%clk 0:01:40]}  Bxc5 {[%clk 0:02:10]} 20. Bxc5 {[%clk 0:01:38]}  Rac8 {[%clk 0:02:11]} 21. Bb6 {[%clk 0:01:32]}  Na8 {[%clk 0:02:08]} 22. Ba5 {[%clk 0:01:08]}  Bxc4 {[%clk 0:02:08]} 23. Kb1 {[%clk 0:00:42]}  Bxf1 {[%clk 0:01:55]} 24. Rgxf1 {[%clk 0:00:42]}  b6 {[%clk 0:01:52]} 25. Rd7+ {[%clk 0:00:37]}  Ke6 {[%clk 0:01:51]} 26. Rfd1 {[%clk 0:00:35]}  Rc6 {[%clk 0:01:46]} 27. Bb4 {[%clk 0:00:34]}  Re8 {[%clk 0:01:40]} 28. Rxg7 {[%clk 0:00:31]}  a5 {[%clk 0:01:39]} 29. Bc3 {[%clk 0:00:24]}  Re7 {[%clk 0:01:39]} 30. Rg8 {[%clk 0:00:16]}  Nc7 {[%clk 0:01:38]} 31. h4 {[%clk 0:00:15]}  Nd5 {[%clk 0:01:36]} 32. Bd2 {[%clk 0:00:13]}  Rd7 {[%clk 0:01:34]} 33. g5 {[%clk 0:00:11]}  Rcd6 {[%clk 0:01:31]} 34. Bc1 {[%clk 0:00:08]}  Nc3+ {[%clk 0:01:30]} 35. bxc3 {[%clk 0:00:09]}  Rxd1 {[%clk 0:01:31]} 36. gxf6 {[%clk 0:00:07]}  Rf1 {[%clk 0:01:26]} 37. Kc2 {[%clk 0:00:02]}  Rxf2+ {[%clk 0:01:26]} 38. Kb3 {[%clk 0:00:02]}  Rxf6 {[%clk 0:01:25]} 39. Bg5 {[%clk 0:00:01]}  Rf3 {[%clk 0:01:20]} 40. Re8+ {[%clk 0:00:01]}  Kd5 {[%clk 0:01:21]} 0-1


[Site "https://www.chess.com"]

[Event "Titled Tuesday Blitz February 07 Late 2023"]
[White "Butolo, Alexandru-Mircea"]
[Black "Aguilar, Juan"]
[WhiteFideId "1261649"]
[BlackFideId "3800091"]
[WhiteElo "2033"]
[BlackElo "2254"]
[Result "0-1"]
[Round "02"]
[TimeControl "180+2"]
[Date "2023.02.07"]
[WhiteClock "0:01:51"]
[BlackClock "0:01:53"]

1. d4 {[%clk 0:03:00]}  g6 {[%clk 0:03:00]} 2. e4 {[%clk 0:02:58]}  Bg7 {[%clk 0:03:01]} 3. Nf3 {[%clk 0:02:57]}  d6 {[%clk 0:03:01]} 4. Be2 {[%clk 0:02:56]}  Nf6 {[%clk 0:03:01]} 5. Nc3 {[%clk 0:02:55]}  O-O {[%clk 0:03:01]} 6. O-O {[%clk 0:02:55]}  c6 {[%clk 0:03:01]} 7. h3 {[%clk 0:02:54]}  Qc7 {[%clk 0:03:00]} 8. a4 {[%clk 0:02:53]}  a5 {[%clk 0:02:59]} 9. Be3 {[%clk 0:02:52]}  e5 {[%clk 0:03:00]} 10. d5 {[%clk 0:02:51]}  cxd5 {[%clk 0:02:49]} 11. exd5 {[%clk 0:02:32]}  Na6 {[%clk 0:02:36]} 12. Nd2 {[%clk 0:02:22]}  Nb4 {[%clk 0:02:34]} 13. Nb5 {[%clk 0:02:20]}  Qe7 {[%clk 0:02:29]} 14. c4 {[%clk 0:02:09]}  Bf5 {[%clk 0:02:28]} 15. c5 {[%clk 0:02:05]}  Nfxd5 {[%clk 0:02:21]} 16. cxd6 {[%clk 0:02:05]}  Qd7 {[%clk 0:02:08]} 17. Nb3 {[%clk 0:02:05]}  Nxe3 {[%clk 0:02:05]} 18. fxe3 {[%clk 0:02:06]}  Rfc8 {[%clk 0:02:01]} 19. Rc1 {[%clk 0:02:04]}  Bh6 {[%clk 0:01:59]} 20. Qd2 {[%clk 0:01:56]}  Rc2 {[%clk 0:01:53]} 21. Rxc2 {[%clk 0:01:51]}  Nxc2 {[%clk 0:01:54]} 22. Qxc2 {[%clk 0:01:51]}  Bxc2 {[%clk 0:01:53]} 0-1


[Site "https://www.chess.com"]